bitfinex/quotes_BTCUSD_20230905
["timestamp","ask_amount","ask_price","bid_price","bid_amount"]
[1693917011983,3.88431627,25735.0,25734.0,0.0001]
[1693917012671,3.89535627,25735.0,25734.0,0.0001]
[1693917012861,3.518071,25735.0,25734.0,0.0001]
[1693917013064,3.405391,25735.0,25734.0,0.0001]
[1693917013343,3.480871,25735.0,25734.0,0.0001]
[1693917013829,3.486931,25735.0,25734.0,0.0001]
[1693917014144,3.509491,25735.0,25734.0,0.0001]
[1693917014348,3.89613627,25735.0,25734.0,0.0001]
[1693917014746,3.84311156,25735.0,25734.0,0.0001]
[1693917015156,3.84935156,25735.0,25734.0,0.0001]
[1693917015590,3.73901156,25735.0,25734.0,0.0001]
[1693917017618,3.80459156,25735.0,25734.0,0.0001]
[1693917017817,3.73901156,25735.0,25734.0,0.0001]
[1693917018024,3.63666156,25735.0,25734.0,0.0001]
[1693917018379,3.65010156,25735.0,25734.0,0.0001]
[1693917018694,3.55950156,25735.0,25734.0,0.0001]
[1693917018893,3.73901156,25735.0,25734.0,0.0001]
[1693917019113,3.80537156,25735.0,25734.0,0.0001]
[1693917019454,3.83339156,25735.0,25734.0,0.0001]
[1693917019696,3.66246156,25735.0,25734.0,0.0001]
[1693917019909,3.67158156,25735.0,25734.0,0.0001]
[1693917020089,3.68100156,25735.0,25734.0,0.0001]
[1693917020398,3.68466156,25735.0,25734.0,0.0001]
[1693917020592,3.68334156,25735.0,25734.0,0.0001]
[1693917020803,3.68124156,25735.0,25734.0,0.0001]
[1693917020961,3.68268156,25735.0,25734.0,0.0001]
[1693917021366,3.68274156,25735.0,25734.0,0.0001]
[1693917021565,3.68262156,25735.0,25734.0,0.0001]
[1693917021789,3.55950156,25735.0,25734.0,0.0001]
[1693917022042,3.63960156,25735.0,25734.0,0.0001]
[1693917022222,3.85930312,25735.0,25734.0,0.0001]
[1693917022446,3.83183156,25735.0,25734.0,0.0001]
[1693917022626,3.84245156,25735.0,25734.0,0.0001]
[1693917022782,3.82607156,25735.0,25734.0,0.0001]
[1693917022992,3.65718156,25735.0,25734.0,0.0001]
[1693917023928,3.89691198,25735.0,25734.0,0.0001]
[1693917024290,3.78219198,25735.0,25734.0,0.0001]
[1693917024510,4.15796366,25735.0,25734.0,0.0001]
[1693917024716,4.25920366,25735.0,25734.0,0.0001]
[1693917024917,4.28434366,25735.0,25734.0,0.0001]
[1693917025337,4.35058096,25735.0,25734.0,0.0001]
[1693917025540,4.30384366,25735.0,25734.0,0.0001]
[1693917026325,4.28668366,25735.0,25734.0,0.0001]
[1693917026527,4.17796366,25735.0,25734.0,0.0001]
[1693917027647,0.02,25733.0,25729.0,1.36039244]
[1693917027859,0.1956389,25730.0,25729.0,1.36039244]
[1693917028066,0.58228417,25730.0,25729.0,1.36039244]
[1693917028828,0.58228417,25730.0,25729.0,1.554664]
[1693917029199,0.55956312,25730.0,25729.0,1.554664]
[1693917029883,0.45896312,25730.0,25729.0,1.579664]
[1693917030045,0.45896312,25730.0,25729.0,1.42631364]
[1693917030212,0.45896312,25730.0,25729.0,1.45131364]
[1693917030758,0.45896312,25730.0,25729.0,1.42631364]
[1693917030957,0.45996312,25730.0,25729.0,1.45131364]
[1693917032697,0.70371398,25730.0,25729.0,1.45131364]
[1693917034341,0.88322398,25730.0,25729.0,1.53478365]
[1693917034762,0.88322398,25730.0,25729.0,1.45131364]
[1693917035982,0.88322398,25730.0,25729.0,2.22864564]
[1693917035983,0.63947312,25730.0,25729.0,2.22864564]
[1693917036383,0.45996312,25730.0,25729.0,2.22864564]
[1693917039660,0.07331785,25730.0,25729.0,2.22864564]
[1693917040246,0.07331785,25730.0,25729.0,2.5652147]
[1693917044792,0.07331785,25730.0,25729.0,0.38656906]
[1693917044956,0.07331785,25730.0,25729.0,1.604653]
[1693917046002,0.07331785,25730.0,25729.0,2.381985]
[1693917049044,0.31061267,25730.0,25729.0,2.381985]
[1693917049412,0.76889794,25730.0,25729.0,0.05]
[1693917049871,0.76871794,25730.0,25729.0,0.05]
[1693917050045,0.69725794,25730.0,25729.0,0.05]
[1693917050252,0.76523794,25730.0,25729.0,0.827332]
[1693917050463,0.76445794,25730.0,25729.0,0.827332]
[1693917050664,0.76415794,25730.0,25729.0,0.827332]
[1693917050866,0.76463794,25730.0,25729.0,0.827332]
[1693917051069,0.76457794,25730.0,25729.0,0.827332]
[1693917051204,0.76469794,25730.0,25729.0,0.827332]
[1693917051604,0.76463794,25730.0,25729.0,0.827332]
[1693917051845,0.76451794,25730.0,25729.0,0.827332]
[1693917052054,0.69725794,25730.0,25729.0,0.827332]
[1693917055390,0.69725794,25730.0,25729.0,1.604664]
[1693917056920,0.87676794,25730.0,25729.0,1.604664]
[1693917058064,0.69725794,25730.0,25729.0,1.604664]
[1693917058750,0.76337794,25730.0,25729.0,1.604664]
[1693917059036,0.69725794,25730.0,25729.0,1.604664]
[1693917061512,0.79029684,25730.0,25729.0,1.604664]
[1693917062965,0.86007684,25730.0,25729.0,1.604664]
[1693917063180,0.79029684,25730.0,25729.0,1.604664]
[1693917063390,1.22175729,25730.0,25729.0,0.05]
[1693917063593,1.2245726,25730.0,25729.0,0.05]
[1693917065414,1.3038926,25730.0,25729.0,0.05]
[1693917065612,1.2245726,25730.0,25729.0,0.05]
[1693917067300,2.52927438,25730.0,25729.0,0.05]
[1693917067507,2.62226756,25730.0,25729.0,0.05]
[1693917067709,2.58315016,25730.0,25729.0,0.05]
[1693917067910,3.38045216,25730.0,25729.0,0.05]
[1693917068550,3.45833216,25730.0,25729.0,0.05]
[1693917068754,3.44999216,25730.0,25729.0,0.05]
[1693917068955,3.83663743,25730.0,25729.0,0.05]
[1693917069372,3.84125743,25730.0,25729.0,0.05]
[1693917069670,3.76709743,25730.0,25729.0,0.05]
[1693917069880,3.74245617,25730.0,25729.0,0.05]
[1693917070255,3.75667617,25730.0,25729.0,0.05]
[1693917070577,3.76855617,25730.0,25729.0,0.05]
[1693917070785,3.48062439,25730.0,25729.0,0.05]
[1693917071011,3.6666225,25730.0,25729.0,0.05]
[1693917071221,3.85322,25730.0,25729.0,0.05]
[1693917071420,3.86654,25730.0,25729.0,0.05]
[1693917071647,3.97843713,25730.0,25729.0,0.05]
[1693917071760,3.99439713,25730.0,25729.0,0.05]
[1693917071959,3.70796963,25730.0,25729.0,0.05]
[1693917072241,3.93956632,25730.0,25729.0,0.05]
[1693917072383,3.94850632,25730.0,25729.0,0.05]
[1693917072587,3.92462632,25730.0,25729.0,0.05]
[1693917072797,3.93872632,25730.0,25729.0,0.05]
[1693917073171,4.13011632,25730.0,25729.0,0.05]
[1693917073400,4.13935632,25730.0,25729.0,0.05]
[1693917073602,4.12081632,25730.0,25729.0,0.05]
[1693917073833,4.13065632,25730.0,25729.0,0.05]
[1693917074213,3.95754632,25730.0,25729.0,0.025]
[1693917074552,3.74510963,25730.0,25729.0,0.003]
[1693917074706,3.69996963,25730.0,25729.0,0.016]
[1693917075136,3.96522083,25730.0,25729.0,0.003]
[1693917075361,3.72458963,25730.0,25729.0,0.003]
[1693917075558,3.62360963,25730.0,25729.0,0.007]
[1693917075757,3.70226963,25730.0,25729.0,0.007]
[1693917076161,3.71600963,25730.0,25729.0,0.007]
[1693917076388,3.72764963,25730.0,25729.0,0.007]
[1693917076566,3.70268963,25730.0,25729.0,0.007]
[1693917076765,4.0076842,25730.0,25729.0,0.007]
[1693917077316,3.84286609,25730.0,25729.0,0.007]
[1693917077523,3.53967152,25730.0,25729.0,0.007]
[1693917077730,3.6217725,25730.0,25729.0,0.007]
[1693917078134,3.6307125,25730.0,25729.0,0.007]
[1693917078334,3.6145725,25730.0,25729.0,0.007]
[1693917078541,3.75383205,25730.0,25729.0,0.007]
[1693917078744,3.76355205,25730.0,25729.0,0.007]
[1693917078928,3.94306205,25730.0,25729.0,0.007]
[1693917079098,3.95116205,25730.0,25729.0,0.007]
[1693917079303,4.08754205,25730.0,25729.0,0.007]
[1693917079504,3.89338205,25730.0,25729.0,0.007]
[1693917079706,3.90916205,25730.0,25729.0,0.007]
[1693917080054,3.92212205,25730.0,25729.0,0.007]
[1693917080263,3.74189205,25730.0,25729.0,0.007]
[1693917080445,3.75305205,25730.0,25729.0,0.007]
[1693917080643,3.99852352,25730.0,25729.0,0.007]
[1693917080998,3.76457205,25730.0,25729.0,0.007]
[1693917081370,3.77374607,25730.0,25729.0,0.007]
[1693917081567,3.64342607,25730.0,25729.0,0.007]
[1693917081791,3.91945754,25730.0,25729.0,0.007]
[1693917081990,3.80460515,25730.0,25729.0,0.007]
[1693917082222,3.73356515,25730.0,25729.0,0.007]
[1693917082652,3.80604515,25730.0,25729.0,0.007]
[1693917082884,3.79654515,25730.0,25729.0,0.007]
[1693917083093,3.80392515,25730.0,25729.0,0.007]
[1693917083284,3.78484515,25730.0,25729.0,0.007]
[1693917083487,3.79564515,25730.0,25729.0,0.007]
[1693917083678,3.80446515,25730.0,25729.0,0.007]
[1693917084168,3.81364515,25730.0,25729.0,0.007]
[1693917084417,3.79612515,25730.0,25729.0,0.007]
[1693917084596,3.80548515,25730.0,25729.0,0.007]
[1693917084995,3.81340515,25730.0,25729.0,0.007]
[1693917085201,3.78046515,25730.0,25729.0,0.007]
[1693917085411,3.97787754,25730.0,25729.0,0.007]
[1693917085632,3.93998194,25730.0,25729.0,0.007]
[1693917085835,3.94976194,25730.0,25729.0,0.007]
[1693917086252,3.95648194,25730.0,25729.0,0.007]
[1693917086457,3.82615825,25730.0,25729.0,0.007]
[1693917086654,3.9365665,25730.0,25729.0,0.007]
[1693917086811,3.945685,25730.0,25729.0,0.007]
[1693917087160,3.953065,25730.0,25729.0,0.007]
[1693917087314,3.160763,25730.0,25729.0,0.007]
[1693917087517,3.171323,25730.0,25729.0,0.007]
[1693917087785,3.179663,25730.0,25729.0,0.007]
[1693917088368,3.183263,25730.0,25729.0,0.007]
[1693917088569,3.084803,25730.0,25729.0,0.007]
[1693917089290,2.98273625,25730.0,25729.0,0.007]
[1693917089522,3.00066625,25730.0,25729.0,0.007]
[1693917090576,3.08304625,25730.0,25729.0,0.007]
[1693917090780,3.08232625,25730.0,25729.0,0.007]
[1693917091115,3.07548625,25730.0,25729.0,0.007]
[1693917091315,3.08688625,25730.0,25729.0,0.007]
[1693917091515,2.81085478,25730.0,25729.0,0.007]
[1693917091739,3.0952889,25730.0,25729.0,0.007]
[1693917091937,3.1029689,25730.0,25729.0,0.007]
[1693917092138,3.0896489,25730.0,25729.0,0.007]
[1693917092871,3.2599889,25730.0,25729.0,0.007]
[1693917093068,3.2349089,25730.0,25729.0,0.007]
[1693917093298,3.34785433,25730.0,25729.0,0.007]
[1693917093695,3.35739433,25730.0,25729.0,0.007]
[1693917093902,3.36507433,25730.0,25729.0,0.007]
[1693917094096,3.35121433,25730.0,25729.0,0.007]
[1693917094321,3.35895433,25730.0,25729.0,0.007]
[1693917094651,3.36627433,25730.0,25729.0,0.007]
[1693917094854,3.36933433,25730.0,25729.0,0.007]
[1693917095058,3.16588433,25730.0,25729.0,0.007]
[1693917095282,3.17626433,25730.0,25729.0,0.007]
[1693917095484,2.90971021,25730.0,25729.0,0.007]
[1693917095678,3.14375524,25730.0,25729.0,0.007]
[1693917095887,3.12485524,25730.0,25729.0,0.007]
[1693917096182,3.30496524,25730.0,25729.0,0.007]
[1693917096382,2.53240324,25730.0,25729.0,0.007]
[1693917096582,2.53288324,25730.0,25729.0,0.007]
[1693917096783,2.52016324,25730.0,25729.0,0.007]
[1693917097002,2.52676324,25730.0,25729.0,0.007]
[1693917097218,2.53150324,25730.0,25729.0,0.007]
[1693917097578,2.53258324,25730.0,25729.0,0.007]
[1693917097819,2.35307324,25730.0,25729.0,0.007]
[1693917098001,2.35205324,25730.0,25729.0,0.007]
[1693917098212,2.35409324,25730.0,25729.0,0.007]
[1693917098608,1.17134597,25730.0,25729.0,0.007]
[1693917098809,1.17134597,25730.0,25729.0,0.784332]
[1693917098810,1.14841597,25730.0,25729.0,0.784332]
[1693917099254,1.21951597,25730.0,25729.0,0.784332]
[1693917099664,1.22251597,25730.0,25729.0,0.784332]
[1693917099873,1.22275597,25730.0,25729.0,0.784332]
[1693917100022,1.25362468,25730.0,25729.0,1.561664]
[1693917100220,1.18642468,25730.0,25729.0,1.561664]
[1693917100624,1.11725054,25730.0,25729.0,1.561664]
[1693917100867,1.11671054,25730.0,25729.0,1.561664]
[1693917101047,1.11803054,25730.0,25729.0,1.561664]
[1693917101249,1.11863054,25730.0,25729.0,1.561664]
[1693917101451,1.11863054,25730.0,25729.0,1.36729242]
[1693917101607,1.11443054,25730.0,25729.0,1.36729242]
[1693917101821,1.11449054,25730.0,25729.0,1.36729242]
[1693917102051,1.11941054,25730.0,25729.0,1.36729242]
[1693917102617,1.11989054,25730.0,25729.0,1.36729242]
[1693917102746,1.11989054,25730.0,25729.0,1.554664]
[1693917102747,1.04699054,25730.0,25729.0,1.554664]
[1693917102975,1.2147395,25730.0,25729.0,1.554664]
[1693917103156,1.11395054,25730.0,25729.0,1.554664]
[1693917103359,1.11905054,25730.0,25729.0,1.554664]
[1693917103562,1.22008536,25730.0,25729.0,1.554664]
[1693917103752,1.14778536,25730.0,25729.0,1.554664]
[1693917104073,1.22020536,25730.0,25729.0,1.554664]
[1693917104648,1.22092536,25730.0,25729.0,1.554664]
[1693917104856,1.22074536,25730.0,25729.0,1.554664]
[1693917105033,1.22092536,25730.0,25729.0,1.554664]
[1693917105437,1.22104536,25730.0,25729.0,1.554664]
[1693917105697,1.22542536,25730.0,25729.0,1.554664]
[1693917105978,1.44579085,25730.0,25729.0,1.554664]
[1693917106134,1.03391536,25730.0,25729.0,1.554664]
[1693917106331,1.04195536,25730.0,25729.0,1.554664]
[1693917106615,1.04735536,25730.0,25729.0,0.777332]
[1693917106849,1.03667536,25730.0,25729.0,0.777332]
[1693917107044,1.04759536,25730.0,25729.0,0.777332]
[1693917107398,1.04801536,25730.0,25729.0,0.777332]
[1693917107645,1.04819536,25730.0,25729.0,0.777332]
[1693917107821,1.28074085,25730.0,25728.0,0.787345]
[1693917108049,0.79348076,25730.0,25729.0,0.777332]
[1693917108251,0.89440076,25730.0,25729.0,0.777332]
[1693917108477,0.89266076,25730.0,25729.0,0.777332]
[1693917108651,0.89440076,25730.0,25729.0,0.777332]
[1693917108854,1.07577076,25730.0,25729.0,0.777332]
[1693917109157,1.07595076,25730.0,25729.0,0.777332]
[1693917109354,1.07473076,25730.0,25729.0,0.777332]
[1693917109683,1.07731076,25730.0,25729.0,0.777332]
[1693917109876,1.07463076,25730.0,25729.0,0.777332]
[1693917110125,1.06293076,25730.0,25729.0,0.777332]
[1693917110305,1.06393076,25730.0,25729.0,0.780332]
[1693917110487,1.07127076,25730.0,25729.0,0.780332]
[1693917110680,1.05981076,25730.0,25729.0,0.780332]
[1693917110888,0.87631837,25730.0,25729.0,0.783332]
[1693917111089,0.88459837,25730.0,25729.0,0.783332]
[1693917111466,0.87319837,25730.0,25729.0,0.783332]
[1693917111760,0.88105837,25730.0,25729.0,0.783332]
[1693917111964,0.88831837,25730.0,25729.0,0.783332]
[1693917112369,0.70970837,25730.0,25729.0,0.783332]
[1693917112573,0.71084837,25730.0,25729.0,0.783332]
[1693917112992,0.71126837,25730.0,25729.0,0.783332]
[1693917113414,0.71198837,25730.0,25729.0,0.783332]
[1693917113593,0.70250837,25730.0,25729.0,0.783332]
[1693917113794,0.70946837,25730.0,25729.0,0.783332]
[1693917114002,0.71234837,25730.0,25729.0,0.783332]
[1693917114207,0.71246837,25730.0,25729.0,0.783332]
[1693917114413,0.71240837,25730.0,25729.0,0.783332]
[1693917114564,0.71282837,25730.0,25729.0,0.783332]
[1693917114867,0.71294837,25730.0,25729.0,0.783332]
[1693917115625,0.71120837,25730.0,25729.0,0.783332]
[1693917115995,0.89071837,25730.0,25729.0,0.783332]
[1693917116191,1.27736364,25730.0,25729.0,0.783332]
[1693917116393,1.19438364,25730.0,25729.0,0.783332]
[1693917119320,1.01487364,25730.0,25729.0,0.783332]
[1693917119776,1.08423364,25730.0,25729.0,0.783332]
[1693917119980,1.09293364,25730.0,25729.0,0.783332]
[1693917120190,1.09899364,25730.0,25729.0,0.783332]
[1693917120390,1.08033364,25730.0,25729.0,0.783332]
[1693917120632,1.08897364,25730.0,25729.0,0.783332]
[1693917120836,1.09623364,25730.0,25729.0,0.783332]
[1693917121038,1.09953364,25730.0,25729.0,0.783332]
[1693917121444,1.08315364,25730.0,25729.0,0.783332]
[1693917121630,1.09911364,25730.0,25729.0,0.783332]
[1693917122028,1.09887364,25730.0,25729.0,0.783332]
[1693917122234,1.09797364,25730.0,25729.0,0.783332]
[1693917122452,1.08675364,25730.0,25729.0,0.783332]
[1693917122621,1.09449364,25730.0,25729.0,0.783332]
[1693917123025,1.09869364,25730.0,25729.0,0.783332]
[1693917123244,1.09815364,25730.0,25729.0,0.783332]
[1693917123451,1.01487364,25730.0,25729.0,0.783332]
[1693917124056,1.08405364,25730.0,25729.0,0.783332]
[1693917124229,1.09173364,25730.0,25729.0,0.783332]
[1693917124448,1.01487364,25730.0,25729.0,0.783332]
[1693917125040,0.86500861,25730.0,25729.0,0.783332]
[1693917125240,0.86158861,25730.0,25729.0,0.006]
[1693917125562,1.16031143,25730.0,25729.0,0.006]
[1693917126002,1.16961143,25730.0,25729.0,0.006]
[1693917126353,1.66865061,25730.0,25729.0,0.006]
[1693917126563,3.20458906,25730.0,25729.0,0.006]
[1693917126746,3.98189106,25730.0,25729.0,0.006]
[1693917126947,4.26516965,25730.0,25729.0,0.006]
[1693917127150,4.27176965,25730.0,25729.0,0.003]
[1693917127367,4.22268965,25730.0,25729.0,0.003]
[1693917127505,4.24548965,25730.0,25729.0,0.003]
[1693917127729,4.23948965,25730.0,25729.0,0.003]
[1693917127929,0.06,25729.0,25728.0,0.01]
[1693917128105,3.2383747,25729.0,25728.0,0.01]
[1693917128304,3.3617947,25729.0,25728.0,0.01]
[1693917128505,3.5039347,25729.0,25728.0,0.01]
[1693917128710,3.59307982,25729.0,25728.0,0.01]
[1693917129135,3.62123982,25729.0,25728.0,0.012]
[1693917129353,3.62603982,25729.0,25728.0,0.012]
[1693917129561,0.02,25728.0,25724.0,0.6372284]
[1693917129817,0.02,25728.0,25723.0,0.777497]
[1693917129818,0.19557776,25726.0,25723.0,0.777497]
[1693917130022,0.56615527,25725.0,25723.0,1.554999]
[1693917130222,0.63239527,25725.0,25723.0,1.554999]
[1693917130330,0.63989527,25725.0,25723.0,1.554999]
[1693917130801,0.64517527,25725.0,25723.0,1.554999]
[1693917131001,0.64445527,25725.0,25724.0,0.012]
[1693917131203,0.72170227,25725.0,25724.0,0.777484]
[1693917131427,0.79018227,25725.0,25724.0,0.789484]
[1693917131770,0.79762227,25725.0,25724.0,0.777484]
[1693917131945,1.06369367,25725.0,25724.0,0.777484]
[1693917132150,0.98687367,25725.0,25724.0,0.789484]
[1693917133231,0.80736367,25725.0,25724.0,0.789484]
[1693917133442,0.87154367,25725.0,25724.0,0.789484]
[1693917133638,0.87254367,25725.0,25724.0,0.801484]
[1693917133845,0.98587367,25725.0,25724.0,0.801484]
[1693917134291,1.05725879,25725.0,25724.0,0.801484]
[1693917134825,1.05725879,25725.0,25724.0,0.024]
[1693917137068,0.87774879,25725.0,25724.0,0.024]
[1693917137529,1.05725879,25725.0,25724.0,0.801484]
[1693917139331,1.05725879,25725.0,25724.0,0.024]
[1693917139332,2.57633339,25725.0,25724.0,0.024]
[1693917139541,2.66931115,25725.0,25724.0,0.024]
[1693917139747,2.67615115,25725.0,25724.0,0.024]
[1693917139899,2.68323115,25725.0,25724.0,0.024]
[1693917140102,2.92935195,25725.0,25724.0,0.024]
[1693917140303,2.92587195,25725.0,25724.0,0.024]
[1693917140480,2.93895195,25725.0,25724.0,0.024]
[1693917140684,2.94237195,25725.0,25724.0,0.024]
[1693917140884,2.93061195,25725.0,25724.0,0.024]
[1693917141088,2.94183195,25725.0,25724.0,0.024]
[1693917141489,2.94267195,25725.0,25724.0,0.024]
[1693917141690,2.94393195,25725.0,25724.0,0.024]
[1693917141919,3.22949946,25725.0,25724.0,0.024]
[1693917142119,3.24203946,25725.0,25724.0,0.024]
[1693917142334,2.93245195,25725.0,25724.0,0.024]
[1693917142468,1.24920595,25725.0,25724.0,0.024]
[1693917142677,2.03523895,25725.0,25724.0,0.024]
[1693917142876,1.94178119,25725.0,25724.0,0.024]
[1693917143166,1.94280119,25725.0,25724.0,0.024]
[1693917143625,1.94208119,25725.0,25724.0,0.024]
[1693917143809,1.94250119,25725.0,25724.0,0.024]
[1693917144002,1.94238119,25725.0,25724.0,0.024]
[1693917144306,1.94268119,25725.0,25724.0,0.024]
[1693917144958,1.94208119,25725.0,25724.0,0.024]
[1693917145091,1.91850119,25725.0,25724.0,0.024]
[1693917145296,1.92840119,25725.0,25724.0,0.024]
[1693917145855,1.66957119,25725.0,25724.0,0.024]
[1693917146019,1.74349119,25725.0,25724.0,0.024]
[1693917146221,1.75297119,25725.0,25724.0,0.024]
[1693917146775,1.76119119,25725.0,25724.0,0.024]
[1693917146949,1.66957119,25725.0,25724.0,0.024]
[1693917147370,1.74475119,25725.0,25724.0,0.024]
[1693917147755,0.96909819,25725.0,25724.0,0.024]
[1693917147950,0.89211819,25725.0,25724.0,0.024]
[1693917148519,0.95859819,25725.0,25724.0,0.024]
[1693917148735,0.89211819,25725.0,25724.0,0.024]
[1693917149741,0.96171819,25725.0,25724.0,0.024]
[1693917149946,0.89211819,25725.0,25724.0,0.024]
[1693917151342,1.07162819,25725.0,25724.0,0.801484]
[1693917152736,1.14464819,25725.0,25724.0,0.801484]
[1693917152940,1.14698819,25725.0,25724.0,0.024]
[1693917153382,1.14962819,25725.0,25724.0,0.024]
[1693917153600,1.14956819,25725.0,25724.0,0.024]
[1693917153790,1.15262819,25725.0,25724.0,0.024]
[1693917154253,1.15256819,25725.0,25724.0,0.024]
[1693917154458,1.15232819,25725.0,25724.0,0.024]
[1693917154664,1.14044819,25725.0,25724.0,0.024]
[1693917154853,1.14038819,25725.0,25724.0,0.019]
[1693917155356,1.14962819,25725.0,25724.0,0.019]
[1693917155583,1.07162819,25725.0,25724.0,0.019]
[1693917155784,1.14338819,25725.0,25724.0,0.019]
[1693917156155,1.14938819,25725.0,25724.0,0.019]
[1693917156344,1.15010819,25725.0,25724.0,0.019]
[1693917156542,1.07162819,25725.0,25724.0,0.019]
[1693917156746,2.03340119,25725.0,25724.0,0.019]
[1693917157269,2.04210119,25725.0,25724.0,0.019]
[1693917157492,2.80101419,25725.0,25724.0,0.019]
[1693917157691,2.81097419,25725.0,25724.0,0.019]
[1693917157915,2.81997419,25725.0,25724.0,0.019]
[1693917158326,2.82459419,25725.0,25724.0,0.019]
[1693917158546,2.79447419,25725.0,25724.0,0.019]
[1693917158782,2.80317419,25725.0,25724.0,0.019]
[1693917159129,2.80737419,25725.0,25724.0,0.019]
[1693917159331,2.81613419,25725.0,25724.0,0.019]
[1693917159557,2.89327195,25725.0,25724.0,0.019]
[1693917159755,2.90203195,25725.0,25724.0,0.019]
[1693917160170,2.91415195,25725.0,25724.0,0.019]
[1693917160366,2.92081195,25725.0,25724.0,0.019]
[1693917160704,2.91355195,25725.0,25724.0,0.019]
[1693917161044,2.92105195,25725.0,25724.0,0.019]
[1693917161244,3.30241722,25725.0,25724.0,0.019]
[1693917161454,3.28897722,25725.0,25724.0,0.019]
[1693917161651,3.29701722,25725.0,25724.0,0.019]
[1693917161996,3.29713722,25725.0,25724.0,0.019]
[1693917162201,2.91571195,25725.0,25724.0,0.019]
[1693917162400,3.70722495,25725.0,25724.0,0.019]
[1693917162637,1.23660595,25725.0,25724.0,0.019]
[1693917162837,1.23774595,25725.0,25724.0,0.019]
[1693917163149,2.01165895,25725.0,25724.0,0.019]
[1693917163356,1.94205895,25725.0,25724.0,0.019]
[1693917163562,2.01135895,25725.0,25724.0,0.019]
[1693917163815,2.01261895,25725.0,25724.0,0.019]
[1693917164060,2.01213895,25725.0,25724.0,0.019]
[1693917164266,1.83454895,25725.0,25724.0,0.019]
[1693917164472,1.73617119,25725.0,25724.0,0.019]
[1693917164768,1.74565119,25725.0,25724.0,0.019]
[1693917164971,1.74439119,25725.0,25724.0,0.019]
[1693917165144,1.74613119,25725.0,25724.0,0.019]
[1693917165356,1.66957119,25725.0,25724.0,0.019]
[1693917165548,1.07162819,25725.0,25724.0,0.019]
[1693917165750,1.16460595,25725.0,25724.0,0.019]
[1693917165952,1.23438595,25725.0,25724.0,0.019]
[1693917166161,1.23648595,25725.0,25724.0,0.019]
[1693917166351,1.16460595,25725.0,25724.0,0.019]
[1693917166561,1.23828595,25725.0,25724.0,0.019]
[1693917166956,1.24254595,25725.0,25724.0,0.019]
[1693917167136,1.24296595,25725.0,25724.0,0.019]
[1693917167355,1.23966595,25725.0,25724.0,0.019]
[1693917167558,2.02893895,25725.0,25724.0,0.019]
[1693917167767,2.03817895,25725.0,25724.0,0.019]
[1693917167941,2.03805895,25725.0,25724.0,0.019]
[1693917168304,2.03823895,25725.0,25724.0,0.019]
[1693917168509,2.03859895,25725.0,25724.0,0.019]
[1693917168919,2.03847895,25725.0,25724.0,0.019]
[1693917169120,2.81473195,25725.0,25724.0,0.019]
[1693917169299,3.32788415,25725.0,25724.0,0.019]
[1693917169503,3.58886259,25725.0,25724.0,0.019]
[1693917169709,3.58676259,25725.0,25724.0,0.019]
[1693917169907,3.58694259,25725.0,25724.0,0.019]
[1693917170043,4.10588753,25725.0,25724.0,0.019]
[1693917170270,4.17875104,25725.0,25724.0,0.019]
[1693917170470,4.22172517,25725.0,25724.0,0.019]
[1693917170896,4.22072517,25725.0,25724.0,0.007]
[1693917171153,4.21040517,25725.0,25724.0,0.007]
[1693917171359,3.96314517,25725.0,25724.0,0.007]
[1693917171653,4.11512517,25725.0,25724.0,0.007]
[1693917171841,0.02,25723.0,25720.0,0.0001]
[1693917172044,0.48924527,25721.0,25720.0,0.0001]
[1693917172244,2.04439327,25721.0,25720.0,0.0001]
[1693917172445,2.2096742,25721.0,25720.0,0.0001]
[1693917172621,2.2109342,25721.0,25720.0,0.0001]
[1693917173031,2.2043342,25721.0,25720.0,0.0001]
[1693917173206,1.4087002,25721.0,25720.0,0.0001]
[1693917173406,1.4150002,25721.0,25720.0,0.0001]
[1693917173607,1.4186602,25721.0,25720.0,0.0001]
[1693917173889,1.4189002,25721.0,25720.0,0.0031]
[1693917174014,1.4169202,25721.0,25720.0,0.0061]
[1693917174211,1.4111002,25721.0,25720.0,0.0061]
[1693917174411,1.4168002,25721.0,25720.0,0.0061]
[1693917174837,1.4168602,25721.0,25720.0,0.0061]
[1693917175065,0.7065962,25721.0,25720.0,0.783704]
[1693917175241,0.6371762,25721.0,25720.0,0.783704]
[1693917177429,0.94870551,25721.0,25720.0,0.0061]
[1693917177635,0.94786551,25721.0,25720.0,0.0061]
[1693917177967,0.94858551,25721.0,25720.0,0.0061]
[1693917178169,0.76883551,25721.0,25720.0,0.0061]
[1693917178376,0.76925551,25721.0,25720.0,0.0061]
[1693917178571,0.76943551,25721.0,25720.0,0.0061]
[1693917178799,0.76829551,25721.0,25720.0,0.0061]
[1693917179007,0.69815551,25721.0,25720.0,0.0061]
[1693917179247,0.76595551,25721.0,25720.0,0.0061]
[1693917179403,0.76823551,25721.0,25720.0,0.0061]
[1693917179804,0.77123551,25721.0,25720.0,0.0061]
[1693917180124,0.95002551,25721.0,25720.0,0.0061]
[1693917180446,0.94984551,25721.0,25720.0,0.0061]
[1693917180648,0.95476551,25721.0,25720.0,0.0061]
[1693917180974,1.75369951,25721.0,25720.0,0.0061]
[1693917181110,1.75477951,25721.0,25720.0,0.0061]
[1693917181314,2.53145351,25721.0,25720.0,0.0061]
[1693917181713,2.53289351,25721.0,25720.0,0.0061]
[1693917181916,2.52137351,25721.0,25720.0,0.0061]
[1693917182117,2.52941351,25721.0,25720.0,0.0061]
[1693917182304,2.53235351,25721.0,25720.0,0.0061]
[1693917182700,2.53403351,25721.0,25720.0,0.0061]
[1693917182965,2.33868351,25721.0,25720.0,0.0061]
[1693917183170,2.34696351,25721.0,25720.0,0.0061]
[1693917183342,2.35452351,25721.0,25720.0,0.0061]
[1693917183525,2.53271351,25721.0,25720.0,0.0061]
[1693917183727,2.52917351,25721.0,25720.0,0.0061]